[Event "44th Chess Olympiad Open 2022"]
[Site "Chennai"]
[Date "2022.08.07"]
[Round "9.8"]
[White "Kazhgaleyev, Murtas"]
[Black "Ivanisevic, Ivan"]
[Result "1/2-1/2"]
[WhiteElo "2536"]
[BlackElo "2561"]
[Annotator "TA"]
[PlyCount "118"]
[EventDate "2022.??.??"]
[TimeControl "60"]

{[%evp 24,118,18,25,31,14,31,35,29,19,32,14,25,11,32,34,16,0,0,-10,0,-25,62,52,
87,84,80,96,87,82,88,83,93,60,56,59,56,-43,-45,-54,-14,-18,-25,-82,-60,-64,-8,
-6,-21,-66,22,29,100,52,85,0,0,0,32,24,25,13,3,5,6,6,4,6,2,0,0,0,0,-4,0,0,0,0,
0,-6,-1,-3,-5,-5,-5,-59,0,0,0,0,0,0,0,0,0,-8,0]} 1. d4 {[%emt 0:00:04]} Nf6 {
[%emt 0:00:06]} 2. c4 {[%emt 0:00:04]} e6 {[%emt 0:00:04]} 3. Nc3 {[%emt 0:00:
00]} Bb4 {[%emt 0:01:21]} 4. e3 {[%emt 0:00:20]} O-O {[%emt 0:00:08]} 5. Bd3 {
[%emt 0:00:20]} d5 {[%emt 0:01:30]} 6. a3 {[%emt 0:01:15]} dxc4 {[%emt 0:04:22]
} 7. Bxc4 {[%emt 0:01:44]} Bd6 {[%emt 0:00:18]} 8. Nf3 {[%emt 0:01:41]} Nc6 {
[%emt 0:00:14]} 9. Nb5 {[%emt 0:07:53]} Be7 {[%emt 0:10:25]} 10. O-O {[%emt 0:
00:00]} a6 {[%emt 0:00:39]} 11. Nc3 {[%emt 0:01:30]} Bd6 {[%emt 0:00:06]} 12.
h3 {[%emt 0:05:54]} e5 {[%emt 0:01:17]} 13. Qc2 {[%emt 0:02:01]} Bd7 {[%emt 0:
00:00] E51: Nimzo-Indian: Rubinstein: 4...0-0 5 Nf3 d5.} 14. Rd1 {[%emt 0:00:
00]} (14. Re1 {is interesting.} h6 15. b4 exd4 16. exd4 Qc8 17. Bxh6 Bxh3 18.
Qg6) 14... Qc8 {[%emt 0:09:06][%cal Yd7h3]} 15. d5 {[%emt 0:03:20]} Ne7 {
[%emt 0:01:28][%cal Yd7h3] White is slightly better.} 16. Bf1 {[%emt 0:00:50]}
Ng6 {[%emt 0:04:49] [#]} 17. b3 $146 {[%emt 0:05:36]} ({Predecessor:} 17. Bd2
c6 18. dxc6 Bxc6 19. Be1 Bc7 20. Rac1 Bxf3 21. gxf3 Nh4 22. Bg2 Re8 23. Ne2
Nxg2 24. Kxg2 Bb6 25. Rd6 Qxc2 26. Rxc2 {0-1 (37) Damljanovic,B (2495)-Zajic,M
(2485) Kragujevac 2019}) 17... h6 {[%emt 0:01:47]} 18. Bb2 {[%emt 0:02:38]} Bf5
{[%emt 0:05:00]} 19. e4 {[%emt 0:05:54]} Bd7 {[%emt 0:00:06]} 20. Nd2 {[%emt 0:
00:00]} Nh7 {[%emt 0:04:28]} 21. Ne2 {[%emt 0:04:45]} Ng5 {[%emt 0:01:19]} 22.
Ng3 {[%emt 0:06:25] [#]} Nf4 {[%emt 0:05:26]} (22... Bxh3 $1 $11 23. gxh3 Nxh3+
24. Bxh3 Qxh3) 23. Nc4 $14 {[%emt 0:07:21]} f5 {[%emt 0:29:36]} 24. exf5 {
[%emt 0:08:19]} (24. Bxe5 Nfxh3+ $1 25. Kh2 fxe4 $1 26. gxh3 (26. Bxd6 Rxf2 27.
Nd2 Nf3+ 28. Kh1 Qd8 $19) 26... Nf3+ 27. Kh1 Bxe5 28. Nxe5 Nxe5 29. Qxe4 Nf3
$17) 24... Bxf5 {[%emt 0:00:18]} 25. Nxf5 {[%emt 0:00:24]} Qxf5 {[%emt 0:01:13]
} 26. Qxf5 {[%emt 0:02:37]} Rxf5 {[%emt 0:00:07]} 27. h4 {[%emt 0:03:03]} Ne4 {
[%emt 0:00:52]} 28. g3 {[%emt 0:06:22]} Bc5 {[%emt 0:00:52][%csl Yf2,Yg3]} 29.
gxf4 {[%emt 0:00:58]} Nxf2 {[%emt 0:00:06]} 30. Kh2 {[%emt 0:02:22]} Rxf4 $15 {
[%emt 0:01:45]} (30... Nxd1 31. Rxd1 Rxf4 32. Bxe5 Rxh4+ 33. Kg3 $11) 31. Bxe5
{[%emt 0:03:16]} (31. Nxe5 $2 Nxd1 32. Rxd1 Rf2+ 33. Kh1 Rxb2 $19) 31... Rxh4+
{[%emt 0:00:18]} 32. Kg2 $1 {[%emt 0:00:18]} Rg4+ {[%emt 0:00:07] Black has
compensation.} 33. Bg3 {[%emt 0:00:44]} (33. Kh2 $11 {keeps the balance.})
33... Ne4 {[%emt 0:02:20]} ({Of course not} 33... Nxd1 $6 34. Rxd1 Rf8 35. Kh3
$11) 34. Rd3 {[%emt 0:05:53]} ({Much worse is} 34. Kf3 h5 35. Bxc7 b5 $17)
34... Rf8 {[%emt 0:00:53]} ({Better is} 34... b5 $1 $15 35. Nd2 (35. Ne5 Rxg3+
36. Rxg3 Nxg3 $17) 35... Rxg3+ 36. Rxg3 Nxd2) 35. Kh3 $11 {[%emt 0:00:58][%csl
Yc7,Yg4]} Rg5 {[%emt 0:01:31]} 36. Be2 {[%emt 0:01:58]} Nf2+ {[%emt 0:00:38]} (
36... b5 $15 37. Nd2 Rxg3+ 38. Rxg3 Nxd2) 37. Bxf2 {[%emt 0:00:27]} Rxf2 {
[%emt 0:01:36]} (37... Bxf2 $11 {remains equal.} 38. Bg4 Kh8) 38. Bg4 {[%emt 0:
00:52]} (38. Bf3 $16) 38... b5 {[%emt 0:00:22] [#]} 39. Nd2 {[%emt 0:00:57]} (
39. d6 $1 $16 {[%cal Rd6c7]} cxd6 40. Nxd6) 39... Bd6 {[%emt 0:00:23][%csl Gd6]
[%cal Rf2h2]} 40. Rh1 {[%emt 0:02:47] Inhibits Rh2+.} Rf4 {[%emt 0:01:23]
Inhibits Ne4.} (40... Re5 $5 {[%cal Rh6h5]} 41. Nf3 Ree2 $14) 41. Rg1 {[%emt 0:
31:39]} Kh7 {[%emt 0:11:52]} 42. Nf3 {[%emt 0:00:00]} Rg6 {[%emt 0:00:06]} 43.
Nh4 {[%emt 0:00:00]} Rgf6 {[%emt 0:06:56]} 44. Rf3 {[%emt 0:00:00] Threatens
to win with Rxf4.} g5 {[%emt 0:00:38] ...h5 is the strong threat.} 45. Rxf4 {
[%emt 0:00:00]} Rxf4 {[%emt 0:00:06]} 46. Nf3 {[%emt 0:00:00]} Bxa3 {[%emt 0:
00:58]} 47. Ra1 {[%emt 0:00:00]} Bd6 {[%emt 0:00:00]} 48. Rxa6 {[%emt 0:00:00]}
Rb4 {[%emt 0:00:38]} 49. Ra8 {[%emt 0:00:00]} Kg7 {[%emt 0:01:03]} 50. Re8 {
[%emt 0:00:00]} Rxb3 {[%emt 0:02:11]} 51. Re6 {[%emt 0:00:00]} Rd3 {[%emt 0:05:
14]} 52. Bh5 {[%emt 0:00:00]} b4 {[%emt 0:00:00]} 53. Rg6+ {[%emt 0:00:00]} Kh7
{[%emt 0:01:03][%cal Yd3f3] aiming for ... Rxf3+!} 54. Rf6 {[%emt 0:00:00]} (
54. Re6 $11 Kg7 55. Rg6+ Kh7 56. Re6 Kg7) 54... b3 {[%emt 0:00:49]} (54... Rc3
$15) 55. Bg6+ {[%emt 0:01:34] The position is equal.} Kg7 {[%emt 0:00:02]
Hoping for ...Re3.} 56. Bxd3 {[%emt 0:00:00]} Kxf6 {[%emt 0:00:07]} 57. Kg4 {
[%emt 0:00:07]} b2 {[%emt 0:00:34]} 58. Bb1 {[%emt 0:00:17]} Bf4 {[%emt 0:00:
06]} 59. Ba2 {[%emt 0:01:36]} Ke7 {[%emt 0:03:19] Weighted Error Value:
White=0.16 (very precise) /Black=0.19 (very precise)} 1/2-1/2

[Event "44th Chess Olympiad Open 2022"]
[Site "Chennai"]
[Date "2022.08.07"]
[Round "9.9"]
[White "Vallejo Pons, Francisco"]
[Black "Andersen, Mads"]
[Result "1/2-1/2"]
[WhiteElo "2702"]
[BlackElo "2587"]
[Annotator "TA"]
[PlyCount "61"]
[EventDate "2022.??.??"]
[TimeControl "60"]

{[%evp 14,61,27,22,40,20,23,35,40,34,22,22,19,16,25,20,10,16,17,21,22,22,22,23,
43,35,22,28,15,-27,-28,-30,-27,-31,-22,-41,-37,-36,-38,-31,-35,-32,-29,-45,-45,
-38,-29,-29,-38,-32]} 1. e4 {[%emt 0:00:06]} e5 {[%emt 0:00:09]} 2. Nf3 {
[%emt 0:00:11]} Nc6 {[%emt 0:00:11]} 3. Bc4 {[%emt 0:00:35]} Nf6 {[%emt 0:00:
00]} 4. Ng5 {[%emt 0:03:17]} d5 {[%emt 0:00:18]} 5. exd5 {[%emt 0:00:10]} Na5 {
[%emt 0:00:10]} 6. Bb5+ {[%emt 0:00:10]} c6 {[%emt 0:00:10]} 7. dxc6 {[%emt 0:
00:00]} bxc6 {[%emt 0:00:10]} 8. Bd3 {[%emt 0:00:58]} Nd5 {[%emt 0:00:37] C58:
Two Knights: 4 Ng5 d5 5 exd5 Na5 sidelines.} 9. Nf3 {[%emt 0:01:27]} ({Weaker
is} 9. Qh5 g6 10. Nxf7 gxh5 $17) 9... Bd6 {[%emt 0:00:21]} 10. O-O {[%emt 0:00:
00]} O-O {[%emt 0:01:25] White is slightly better.} 11. Re1 {[%emt 0:02:01]} f5
{[%emt 0:00:18] [#] White must now prevent ...e4.} 12. Nxe5 {[%emt 0:01:16]}
Qf6 $1 {[%emt 0:00:21]} ({Less strong is} 12... Qh4 13. Bf1 $18) 13. Nf3 {
[%emt 0:00:25]} g5 $1 {[%emt 0:00:12]} 14. g3 {[%emt 0:05:21] aiming for Nc3.}
f4 {[%emt 0:00:42]} 15. Nc3 $1 {[%emt 0:04:02] Ne4 is the strong threat.} fxg3
{[%emt 0:03:05] [#]} (15... Nxc3 {looks sharper.} 16. dxc3 fxg3 17. hxg3 Bg4)
16. hxg3 {[%emt 0:02:58][%cal Yc3e4] Strongly threatening Ne4!} Qxf3 {[%emt 0:
00:00]} (16... Nxc3 17. dxc3) 17. Qxf3 {[%emt 0:07:55] Remove Defender. Really
sharp!} Rxf3 {[%emt 0:00:12]} 18. Be4 $1 {[%emt 0:01:03][%csl Yd5,Yf3]} Rf7 {
[%emt 0:00:58] Threatens to win with ...Bc5.} 19. Nxd5 {[%emt 0:04:32]} cxd5 {
[%emt 0:00:10]} 20. Bxd5 {[%emt 0:00:05]} Bb7 {[%emt 0:00:00] [#]} 21. Bxb7
$146 {[%emt 0:10:10]} ({Predecessor:} 21. Bxf7+ Kxf7 22. d4 Rg8 23. b3 Bf3 24.
d5 Rg6 25. Re6 Rxe6 26. dxe6+ Kxe6 27. Bxg5 {½-½ (49) Sindarov,J (2609)
-Kovalev,V (2623) Warsaw 2021}) 21... Rxb7 {[%emt 0:11:44]} 22. d4 {[%emt 0:02:
33]} Nc4 $36 {[%emt 0:18:35] Black is pushing.} 23. b3 {[%emt 0:15:03]} Bb4 {
[%emt 0:02:27]} 24. Rd1 {[%emt 0:01:23]} Bc3 {[%emt 0:04:16]} 25. Rb1 {[%emt 0:
00:07]} Re8 {[%emt 0:15:36]} 26. Bxg5 {[%emt 0:06:34]} Na3 {[%emt 0:01:25]
[%csl Yb1,Yc2]} ({But not} 26... Nb2 27. Rdc1 $11) 27. Rbc1 {[%emt 0:00:26]}
Bb2 {[%emt 0:05:57]} 28. c4 {[%emt 0:01:00]} Bxc1 {[%emt 0:03:43]} 29. Rxc1 {
[%emt 0:01:30]} Re2 {[%emt 0:03:55]} 30. c5 {[%emt 0:02:44]} Rf7 {[%emt 0:05:
28]} 31. c6 {[%emt 0:09:45] Weighted Error Value: White=0.04 (flawless) /
Black=0.01 (flawless)} 1/2-1/2

[Event "44th Chess Olympiad Open 2022"]
[Site "Chennai"]
[Date "2022.08.07"]
[Round "9.9"]
[White "Iturrizaga Bonelli, Eduardo"]
[Black "Rasmussen, Allan Stig"]
[Result "1-0"]
[WhiteElo "2619"]
[BlackElo "2550"]
[Annotator "TA"]
[PlyCount "57"]
[EventDate "2022.??.??"]
[TimeControl "60"]

{[%evp 9,57,36,49,13,27,-10,-12,-12,0,-16,26,15,29,18,15,15,28,0,163,87,483,
472,467,477,482,478,561,564,574,556,860,851,854,831,827,823,959,942,953,962,
959,959,914,914,1017,1008,952,952,911,862]} 1. d4 {[%emt 0:00:03]} f5 {[%emt 0:
00:00]} 2. Bf4 {[%emt 0:00:32]} Nf6 {[%emt 0:00:47]} 3. e3 {[%emt 0:00:04]} d6
{[%emt 0:01:12]} 4. Nf3 {[%emt 0:01:16]} g6 {[%emt 0:00:55]} 5. Bc4 {[%emt 0:
00:00]} Bg7 {[%emt 0:02:50]} 6. h3 {[%emt 0:01:40] A80: Dutch Defence: Unusual
White second moves.} e6 {[%emt 0:03:35][%cal Ye7e6,Ye6e5]} 7. g4 {[%emt 0:01:
55]} Qe7 {[%emt 0:03:14]} 8. Nc3 {[%emt 0:03:23][%cal Yb1c3,Yc3b5,Yb5c7] The
position is equal.} Nbd7 {[%emt 0:06:18] [#]} 9. Bb3 $146 {[%emt 0:08:34]} ({
Predecessor:} 9. gxf5 exf5 10. Bb3 Nb6 11. Bg5 h6 12. Bxf6 Bxf6 13. a4 a5 14.
Qd2 Bd7 15. O-O-O {0-1 (34) Heinemann,C (2234)-Watson,R (2245) ICCF email 2019}
) 9... e5 {[%emt 0:08:53]} 10. Bg5 {[%emt 0:23:38]} Nb6 {[%emt 0:11:34]
Inhibits Nd5.} 11. a4 $36 {[%emt 0:19:59] a5 is the strong threat. White has
some pressure.} a5 $1 {[%emt 0:06:21]} 12. dxe5 {[%emt 0:01:52]} dxe5 {[%emt 0:
00:10]} 13. Nb5 {[%emt 0:00:36] Threatens to win with Rg1.} h6 $2 {[%emt 0:05:
34] [#]} (13... fxg4 $11 {and Black is okay.} 14. Nh4 gxh3) 14. Nxe5 {[%emt 0:
01:14]} (14. Nh4 $1 $18 {[%cal Rh4g6]} hxg5 15. Nxg6) 14... hxg5 $4 {[%emt 0:
10:31] A mistake that costs the game.} (14... Qxe5 $16 15. Bf4 Qc5) 15. Bf7+
$18 {[%emt 0:00:59] White is clearly winning.} Qxf7 {[%emt 0:00:13]} 16. Nxf7 {
[%emt 0:00:04]} Kxf7 {[%emt 0:00:05]} 17. Nxc7 {[%emt 0:00:24] aiming for Qd6.}
Bd7 {[%emt 0:04:10]} 18. Qd6 {[%emt 0:06:05]} Nc8 {[%emt 0:09:14]} 19. Qc5 {
[%emt 0:02:17]} Rb8 {[%emt 0:00:00]} 20. O-O-O {[%emt 0:00:14][%cal Yd1d7]
Strongly threatening Rxd7+!} Rd8 {[%emt 0:01:14]} 21. gxf5 {[%emt 0:00:11]}
gxf5 {[%emt 0:00:30]} 22. Rhg1 {[%emt 0:00:14]} Ne4 {[%emt 0:05:39] [#]} 23.
Rxd7+ $1 {[%emt 0:15:37]} Rxd7 {[%emt 0:00:03]} 24. Qxf5+ {[%emt 0:00:10]} Nf6
{[%emt 0:00:29]} 25. Qe6+ {[%emt 0:03:05]} Kf8 {[%emt 0:06:05]} 26. Qe5 {
[%emt 0:00:03] Hoping for Ne6+.} Nd6 {[%emt 0:01:27]} 27. Ne6+ {[%emt 0:00:56]}
Kg8 {[%emt 0:05:30]} 28. Rxg5 {[%emt 0:00:22] White threatens Qxf6 and mate.}
Rf8 {[%emt 0:01:54]} 29. Nxg7 {[%emt 0:00:54] Weighted Error Value: White=0.14
(very precise) /Black=0.70} 1-0

[Event "44th Chess Olympiad Open 2022"]
[Site "Chennai"]
[Date "2022.08.07"]
[Round "9.9"]
[White "Bjerre, Jonas Buhl"]
[Black "Shirov, Alexei"]
[Result "1/2-1/2"]
[WhiteElo "2608"]
[BlackElo "2704"]
[Annotator "TA"]
[PlyCount "98"]
[EventDate "2022.??.??"]
[TimeControl "60"]

{[%evp 20,98,6,14,0,8,20,12,13,13,20,10,18,29,31,9,11,10,9,7,33,17,34,6,0,0,0,
0,0,0,0,0,0,0,0,0,0,0,0,0,0,0,0,0,0,0,0,0,0,0,0,0,0,0,0,0,0,0,0,0,0,0,0,0,0,0,
0,0,0,0,0,0,0,0,0,0,0,0,0,0,0]} 1. Nf3 {[%emt 0:00:07]} d5 {[%emt 0:00:06]} 2.
g3 {[%emt 0:00:09]} Bg4 {[%emt 0:01:50]} 3. Bg2 {[%emt 0:00:39]} Nd7 {[%emt 0:
00:00]} 4. c4 {[%emt 0:01:04]} e6 {[%emt 0:02:07]} 5. cxd5 {[%emt 0:00:34]}
exd5 {[%emt 0:00:05]} 6. h3 {[%emt 0:00:32]} Bxf3 {[%emt 0:02:57]} 7. Bxf3 {
[%emt 0:00:07]} Ngf6 {[%emt 0:00:08]} 8. d3 {[%emt 0:01:28]} Bd6 {[%emt 0:00:
00]} 9. O-O {[%emt 0:03:09]} O-O {[%emt 0:01:00]} 10. Nc3 {[%emt 0:02:31]} c6 {
[%emt 0:00:08]} 11. e4 {[%emt 0:03:21][%cal Re4d5]} dxe4 {[%emt 0:10:44] A11:
English Opening: 1...c6.} 12. dxe4 {[%emt 0:00:13]} Be5 {[%emt 0:00:04]} 13.
Qc2 {[%emt 0:10:59] [#]} Nc5 $146 {[%emt 0:05:05]} ({Predecessor:} 13... Re8
14. Bg2 Qe7 15. Re1 Nc5 16. Be3 Rad8 17. Rad1 Bxc3 18. bxc3 Rxd1 19. Qxd1 Ncxe4
20. Bxa7 {0-1 (38) Lammens,T (2268)-Hammer,J (2636) Warsaw 2010}) 14. Be3 {
[%emt 0:04:44]} Qd3 {[%emt 0:01:29]} 15. Rac1 {[%emt 0:10:03]} Qxc2 {[%emt 0:
00:00]} 16. Rxc2 {[%emt 0:00:04]} Ne6 {[%emt 0:00:06]} 17. Rd1 {[%emt 0:07:06]}
Rfd8 {[%emt 0:19:44]} 18. Rcd2 {[%emt 0:06:54]} Rxd2 {[%emt 0:01:08]} 19. Rxd2
{[%emt 0:00:08]} g5 {[%emt 0:00:08]} 20. Bg4 {[%emt 0:11:36]} h5 {[%emt 0:00:
00]} 21. Bxe6 {[%emt 0:05:38]} fxe6 {[%emt 0:00:05] The position is equal.} 22.
f3 {[%emt 0:02:13]} ({Much weaker is} 22. Bxg5 Bxc3 23. bxc3 Nxe4 24. Rd8+ Rxd8
25. Bxd8 Nxc3 $17) 22... g4 {[%emt 0:02:02]} 23. hxg4 {[%emt 0:05:10]} hxg4 {
[%emt 0:00:05]} 24. fxg4 {[%emt 0:01:30]} Nxg4 {[%emt 0:03:25]} 25. Bf4 {
[%emt 0:01:01]} Bxc3 {[%emt 0:18:31]} 26. bxc3 $11 {[%emt 0:00:12] Endgame
KRB-KRN} e5 {[%emt 0:00:04]} 27. Bg5 {[%emt 0:01:52]} Rf8 {[%emt 0:00:00]} 28.
Kg2 {[%emt 0:04:42]} Rf7 {[%emt 0:00:26]} 29. Rd6 {[%emt 0:05:18]} Nf2 {
[%emt 0:01:18]} 30. Rg6+ {[%emt 0:03:01]} Kh7 {[%emt 0:00:53]} 31. Rf6 {
[%emt 0:02:24]} Rxf6 {[%emt 0:00:08]} 32. Bxf6 {[%emt 0:00:02] KB-KN} Ng4 {
[%emt 0:01:29]} 33. Be7 {[%emt 0:01:32]} Ne3+ {[%emt 0:00:26]} 34. Kf3 {
[%emt 0:00:11]} Nc4 {[%emt 0:04:05]} 35. Ke2 {[%emt 0:00:51]} b5 {[%emt 0:00:
00]} 36. g4 {[%emt 0:01:42]} Kg6 {[%emt 0:00:09]} 37. Kd3 {[%emt 0:00:25]} a6 {
[%emt 0:00:50]} 38. Bd8 {[%emt 0:02:06]} Nd6 {[%emt 0:04:32]} 39. Be7 {[%emt 0:
00:00]} Nf7 {[%emt 0:00:49]} 40. c4 {[%emt 0:03:26]} Ng5 {[%emt 0:01:23]} 41.
cxb5 {[%emt 0:05:03]} axb5 {[%emt 0:00:04]} 42. a3 {[%emt 0:02:10]} Ne6 {
[%emt 0:00:31]} 43. Kc3 {[%emt 0:01:31]} c5 {[%emt 0:14:43]} 44. Kb3 {[%emt 0:
00:00]} Kf7 {[%emt 0:07:35]} 45. Bd6 {[%emt 0:01:20]} Kf6 {[%emt 0:00:25]} 46.
a4 {[%emt 0:04:09]} Nd4+ {[%emt 0:03:16]} 47. Kb2 {[%emt 0:02:25] [#]
Threatens to win with a5.} bxa4 {[%emt 0:00:41]} 48. Bxc5 {[%emt 0:00:47]} Nb5
{[%emt 0:00:09]} 49. Bg1 {[%emt 0:01:32]} Kg5 {[%emt 0:00:31] An interesting
draw. Weighted Error Value: White=0.03 (flawless) /Black=0.02 (flawless)}
1/2-1/2

[Event "44th Chess Olympiad Open 2022"]
[Site "Chennai"]
[Date "2022.08.07"]
[Round "9.9"]
[White "Thybo, Jesper Sondergaard"]
[Black "Santos Latasa, Jaime"]
[Result "0-1"]
[WhiteElo "2520"]
[BlackElo "2675"]
[Annotator "TA"]
[PlyCount "116"]
[EventDate "2022.??.??"]
[TimeControl "60"]

{[%evp 15,116,11,5,6,10,10,8,16,26,-7,-2,-5,8,5,10,-43,-32,-46,-41,-77,-36,-84,
-62,-75,-72,-75,-75,-86,-77,-83,-66,-73,-74,-85,-91,-94,-73,-72,-69,-74,-67,
-72,-68,-71,-56,-58,-43,-43,-29,-43,-48,-79,-77,-79,-79,-106,-106,-106,-106,
-106,-106,-125,-125,-133,-133,-133,-119,-125,-126,-221,-212,-219,-192,-278,
-285,-535,-525,-525,-353,-485,-404,-404,-335,-330,-283,-298,-285,-365,-355,
-564,-559,-487,-441,-744,-744,-1619,-1461,-1141,-885,-1062,-672,-29973,-29972]
} 1. d4 {[%emt 0:00:07]} Nf6 {[%emt 0:00:19]} 2. c4 {[%emt 0:00:15]} g6 {
[%emt 0:00:04]} 3. Nc3 {[%emt 0:01:28]} d5 {[%emt 0:00:06]} 4. cxd5 {[%emt 0:
00:00]} Nxd5 {[%emt 0:00:32]} 5. e4 {[%emt 0:00:08]} Nxc3 {[%emt 0:00:04]} 6.
bxc3 {[%emt 0:00:06]} Bg7 {[%emt 0:00:04]} 7. Qa4+ {[%emt 0:00:42]} Nd7 {
[%emt 0:00:12][%cal Yb8d7,Yd7b6,Yb6a4,Ya4b2]} 8. Nf3 {[%emt 0:00:40]} O-O {
[%emt 0:00:05]} 9. Be2 {[%emt 0:00:53] D85: Exchange Grünfeld: Unusual White
7th moves and lines with 7 Nf3.} Nb6 {[%emt 0:01:09]} 10. Qb4 {[%emt 0:00:00]
is currently scoring better than 10.Qa3.} Qd6 {[%emt 0:05:26]} 11. O-O {
[%emt 0:03:10] [#] The position is equal.} Be6 $146 {[%emt 0:08:45]} ({
Predecessor:} 11... Bd7 12. Be3 Qxb4 13. cxb4 Bc6 14. Nd2 f5 15. f3 Rfd8 16. b5
Be8 17. Nb3 Bf7 {½-½ (36) Yu,Y (2763)-Wei,Y (2721) Khanty-Mansiysk 2019}) 12.
Rd1 {[%emt 0:09:24]} Qxb4 {[%emt 0:04:12]} (12... Rfc8 {keeps more tension.}
13. Qb1 c5 14. a4 Bc4) 13. cxb4 {[%emt 0:00:17]} Na4 {[%emt 0:02:01]} 14. Bd2 {
[%emt 0:09:41] Prevents Nc3.} Rfd8 {[%emt 0:00:22]} 15. Bb5 {[%emt 0:06:57]} (
15. Rac1 $11) 15... Nb2 $15 {[%emt 0:01:24]} 16. Rdc1 {[%emt 0:06:57]} c6 $36 {
[%emt 0:01:59] Black is pushing.} 17. Bc3 {[%emt 0:07:57]} Nc4 {[%emt 0:12:10]}
18. Ba4 {[%emt 0:01:10]} (18. Bxc4 $15 Bxc4 19. Ne5) 18... Nd6 {[%emt 0:00:29]
Black is more active.} 19. Nd2 {[%emt 0:03:05]} a6 {[%emt 0:00:00]} 20. a3 {
[%emt 0:04:03]} Nb5 {[%emt 0:04:12]} 21. Bxb5 {[%emt 0:00:08]} axb5 {[%emt 0:
00:06]} 22. Nf3 {[%emt 0:00:11]} Bc4 {[%emt 0:00:55]} 23. Ne5 {[%emt 0:03:16]}
Bb3 {[%emt 0:08:14] This bishop pair is nice.} 24. f3 {[%emt 0:00:00]} f6 {
[%emt 0:06:36]} 25. Ng4 {[%emt 0:01:36]} f5 {[%emt 0:01:57]} 26. exf5 {[%emt 0:
02:01]} gxf5 {[%emt 0:00:54]} 27. Ne5 {[%emt 0:00:15]} Bxe5 {[%emt 0:00:46]}
28. dxe5 {[%emt 0:00:04]} Kf7 {[%emt 0:00:07]} 29. Be1 {[%emt 0:02:39]} Ke6 {
[%emt 0:01:46]} 30. Rc3 {[%emt 0:01:49]} Bc4 {[%emt 0:00:00]} 31. a4 {[%emt 0:
07:37]} f4 {[%emt 0:01:13]} 32. a5 {[%emt 0:04:51]} Rd5 {[%emt 0:01:54]} 33. h3
{[%emt 0:02:05]} Rxe5 {[%emt 0:01:06] White is now going downhill.} 34. Bf2 {
[%emt 0:00:41]} Kf5 {[%emt 0:03:34]} 35. Re1 {[%emt 0:01:39]} Rxe1+ {[%emt 0:
00:28]} 36. Bxe1 $17 {[%emt 0:00:01] Endgame KRB-KRB} Rd8 {[%emt 0:00:26]
Threatens to win with ...Rd1.} 37. Rc1 {[%emt 0:01:21] Prevents Rd1.} e5 {
[%emt 0:00:35]} 38. Bf2 {[%emt 0:00:55]} Rd2 {[%emt 0:00:21]} 39. Bc5 {[%emt 0:
01:27] [#]} Bd3 $1 {[%emt 0:01:09]} 40. Bf2 {[%emt 0:03:57]} Rb2 {[%emt 0:05:
54]} 41. Rd1 {[%emt 0:33:54]} e4 {[%emt 0:00:00]} 42. fxe4+ {[%emt 0:00:00]} (
42. Bc5 $17) 42... Bxe4 $19 {[%emt 0:00:00]} ({Weaker is} 42... Kxe4 43. Bc5
$15) 43. Rd7 {[%emt 0:00:00]} Rxb4 {[%emt 0:00:00]} 44. Rxb7 {[%emt 0:00:00]} (
44. Rxh7 $142 Bd5 45. Rxb7) 44... Ra4 {[%emt 0:00:00]} 45. Ra7 $2 {[%emt 0:00:
00]} (45. Bc5 {was necessary.}) 45... b4 {[%emt 0:00:00]} 46. Rb7 {[%emt 0:00:
00]} Bd3 {[%emt 0:00:00]} 47. Be1 {[%emt 0:00:00]} Bb5 {[%emt 0:00:00] [#]
White must now prevent ...Ra1.} 48. Rf7+ {[%emt 0:00:00]} Ke5 {[%emt 0:00:00]}
49. Rxh7 {[%emt 0:00:00]} b3 {[%emt 0:00:00]} ({Not} 49... Ra1 $2 50. Kh2 Rb1
51. h4 $19) 50. Bc3+ {[%emt 0:00:00]} Ke4 {[%emt 0:00:00]} 51. Rd7 {[%emt 0:00:
27]} Rc4 {[%emt 0:00:00]} 52. Bg7 {[%emt 0:00:54]} (52. Bh8 $142) 52... Rc1+ {
[%emt 0:00:00]} 53. Kh2 {[%emt 0:00:00]} Rc2 {[%emt 0:00:00] aiming for ...f3.}
54. Rd4+ {[%emt 0:05:07]} (54. Re7+ $142 Kf5 55. Bd4) 54... Kf5 {[%emt 0:00:00]
...f3 is the strong threat.} 55. Rb4 {[%emt 0:00:46]} f3 {[%emt 0:00:00]} 56.
Bd4 {[%emt 0:00:38]} Rxg2+ {[%emt 0:00:00]} 57. Kh1 {[%emt 0:00:01]} Rd2 {
[%emt 0:00:00][%cal Yd2d4] ( -> . ..Rxd4!)} 58. Kg1 {[%emt 0:00:28]} b2 {
[%emt 0:00:00] Weighted Error Value: White=0.53/Black=0.17 (very precise)} 0-1